bitfinex-derivatives/quotes_ETHF0:USTF0_20210110
["timestamp","ask_amount","ask_price","bid_price","bid_amount"]
[1610304465838,20.37162583,1287.3,1287.0,10.0]
[1610304466038,18.13909569,1287.5,1287.0,10.0]
[1610304466237,18.13909569,1287.5,1287.4,4.00959]
[1610304466639,18.13909569,1287.5,1287.4,14.00959]
[1610304467839,18.15837449,1287.6,1287.4,14.00959]
[1610304468039,18.15837449,1287.6,1287.5,10.0]
[1610304469440,64.4105,1287.7,1287.5,10.0]
[1610304469841,64.4105,1287.7,1287.6,10.0]
[1610304470240,68.42009,1287.7,1287.5,10.0]
[1610304470642,71.44965719,1287.7,1287.6,10.0]
[1610304471042,71.44965719,1287.7,1287.5,10.0]
[1610304471440,71.44965719,1287.7,1287.6,10.0]
[1610304471642,4.84816719,1287.7,1287.6,10.0]
[1610304478752,24.00875936,1287.7,1287.6,10.0]
[1610304480255,4.84816719,1287.7,1287.6,10.0]
[1610304482258,24.44223208,1287.7,1287.6,10.0]
[1610304482558,4.84816719,1287.7,1287.6,10.0]
[1610304486161,24.43125108,1287.7,1287.6,10.0]
[1610304487062,4.84816719,1287.7,1287.6,10.0]
[1610304487562,24.41225205,1287.7,1287.6,10.0]
[1610304487762,4.84816719,1287.7,1287.6,10.0]
[1610304488563,4.84816719,1287.7,1287.6,1.4716]
[1610304488763,4.84816719,1287.7,1286.1,57.2535]
[1610304489164,4.84816719,1287.7,1286.2,10.0]
[1610304489364,4.84816719,1287.7,1286.3,10.0]
[1610304489365,19.09823003,1286.6,1286.3,10.0]
[1610304489565,19.11032193,1286.4,1286.3,10.0]
[1610304489764,19.11032193,1286.4,1286.2,10.0]
[1610304489966,1.8189,1286.6,1286.2,10.0]
[1610304490166,1.8189,1286.6,1286.3,10.0]
[1610304490366,7.32139362,1286.4,1286.3,10.0]
[1610304490566,7.32139362,1286.4,1286.2,10.0]
[1610304490768,61.9395,1286.3,1284.8,55.3535]
[1610304491167,63.9631,1286.3,1284.8,55.3535]
[1610304491367,18.23612033,1285.4,1284.8,55.3535]
[1610304491566,20.57892033,1285.4,1284.8,55.3535]
[1610304491769,18.23974514,1285.3,1284.9,10.0]
[1610304491968,18.24493821,1285.2,1285.0,10.0]
[1610304492268,4.00959,1285.1,1285.0,10.0]
[1610304492470,4.00959,1285.1,1284.9,10.0]
[1610304492669,4.00959,1285.1,1284.8,55.3535]
[1610304492868,18.25044841,1285.3,1284.8,55.3535]
[1610304493071,18.25044841,1285.3,1284.9,10.0]
[1610304493469,18.25044841,1285.3,1285.0,10.0]
[1610304493869,18.25044841,1285.3,1284.9,10.0]
[1610304494069,18.25044841,1285.3,1285.1,10.0]
[1610304494270,22.25350418,1285.2,1285.1,10.0]
[1610304494470,4.00959,1285.2,1285.0,10.0]
[1610304494671,18.24233356,1285.3,1285.1,10.0]
[1610304495070,18.24233356,1285.3,1284.9,10.0]
[1610304495471,18.24233356,1285.3,1285.0,10.0]
[1610304495872,18.24233356,1285.3,1284.9,10.0]
[1610304496070,18.23234967,1285.1,1284.8,55.3535]
[1610304496270,4.00959,1284.9,1284.8,55.3535]
[1610304496670,22.23615549,1284.9,1284.8,65.3535]
[1610304497473,4.00959,1284.9,1284.8,65.3535]
[1610304498672,7.32364534,1284.9,1284.8,65.3535]
[1610304499575,3.31405534,1284.9,1284.8,65.3535]
[1610304500177,18.1504909,1285.2,1284.8,10.0]
[1610304500378,18.14734528,1285.3,1285.1,4.00959]
[1610304500776,18.15338603,1285.4,1285.1,4.00959]
[1610304500979,22.16203493,1285.5,1285.2,10.0]
[1610304501378,4.00959,1285.5,1285.2,10.0]
[1610304501580,4.00959,1285.5,1285.3,10.0]
[1610304501978,18.15481156,1285.6,1285.2,10.0]
[1610304502177,18.15481156,1285.6,1285.1,4.00959]
[1610304502378,18.1680948,1285.7,1285.5,4.00959]
[1610304502779,22.18388033,1285.8,1285.5,6.05859]
[1610304502978,18.18236355,1286.0,1285.6,10.0]
[1610304503378,83.02435451,1286.6,1285.7,10.0]
[1610304503379,18.18658998,1286.1,1285.7,10.0]
[1610304503779,18.19948501,1286.3,1285.7,30.0]
[1610304503979,18.22102852,1286.5,1285.7,30.0]
[1610304504179,18.22102852,1286.5,1285.8,10.0]
[1610304504380,80.3545821,1286.6,1286.4,4.00959]
[1610304504580,80.3545821,1286.6,1286.4,6.08509]
[1610304504980,62.1142,1286.6,1286.5,10.0]
[1610304507083,62.1142,1286.6,1286.5,41.549]
[1610304508184,62.1142,1286.6,1286.5,11.549]
[1610304508585,62.1142,1286.6,1286.5,10.0]
[1610304509587,18.28471845,1286.9,1286.5,10.0]
[1610304509786,18.2726987,1286.7,1286.5,10.0]
[1610304509985,18.2726987,1286.7,1286.6,10.0]
[1610304510386,22.2822887,1286.7,1286.5,10.0]
[1610304510787,22.2822887,1286.7,1286.2,10.0]
[1610304510788,4.00959,1286.7,1286.2,10.0]
[1610304511389,18.24972665,1286.5,1286.3,10.0]
[1610304511588,18.24972665,1286.5,1285.8,2.2444]
[1610304511790,18.24972665,1286.5,1286.4,10.0]
[1610304512190,4.00959,1286.7,1285.9,10.0]
[1610304512389,4.00959,1286.0,1285.5,2.049]
[1610304512588,4.00959,1286.0,1285.6,10.0]
[1610304512989,4.00959,1286.0,1285.7,10.0]
[1610304513390,4.00959,1286.0,1285.6,10.0]
[1610304513789,4.00959,1286.0,1285.7,10.0]
[1610304514189,4.00959,1286.0,1285.6,10.0]
[1610304514388,4.00959,1285.7,1285.6,10.0]
[1610304514588,4.00959,1285.7,1285.5,2.049]
[1610304514990,4.00959,1285.7,1285.6,10.0]
[1610304515189,4.00959,1285.7,1285.4,10.0]
[1610304515591,4.00959,1285.7,1285.0,2.3294]
[1610304515893,22.21519145,1285.7,1285.0,2.3294]
[1610304516091,22.21519145,1285.7,1285.5,10.0]
[1610304516292,18.2067501,1285.6,1285.1,10.0]
[1610304516692,4.00959,1285.7,1285.6,10.0]
[1610304517092,4.00959,1285.7,1285.1,10.0]
[1610304517294,6.02629,1285.7,1284.1,1.5258]
[1610304517492,6.02629,1285.7,1285.2,10.0]
[1610304517493,25.10459744,1285.7,1285.2,10.0]
[1610304517893,19.0574589,1285.5,1283.8,2.1289]
[1610304518295,20.31323428,1284.8,1284.3,10.0]
[1610304518496,4.00959,1284.4,1284.3,10.0]
[1610304518695,4.00959,1284.4,1283.9,14.00959]
[1610304518895,4.00959,1284.4,1283.9,4.00959]
[1610304519097,4.00959,1284.4,1284.0,10.0]
[1610304519494,4.00959,1284.4,1284.1,10.0]
[1610304519897,22.13560307,1284.4,1283.9,10.0]
[1610304520098,18.12155449,1284.3,1283.9,10.0]
[1610304520297,18.12155449,1284.3,1284.2,10.0]
[1610304520697,18.12155449,1284.3,1283.5,10.0]
[1610304520898,18.11967133,1284.2,1283.1,44.3614]
[1610304521297,18.11967133,1284.2,1283.2,10.0]
[1610304521497,18.11967133,1284.2,1283.3,10.0]
[1610304521897,6.21649,1284.4,1283.3,10.0]
[1610304522097,18.11750709,1284.2,1283.2,10.0]
[1610304522298,18.11525955,1284.1,1283.2,10.0]
[1610304522497,20.12625955,1284.1,1283.3,10.0]
[1610304522698,20.12625955,1284.1,1283.2,10.0]
[1610304523297,20.12625955,1284.1,1283.3,10.0]
[1610304523498,20.12625955,1284.1,1283.2,10.0]
[1610304523900,2.011,1284.1,1283.4,10.0]
[1610304524099,18.12204731,1284.2,1283.4,11.7108]
[1610304524301,20.33855846,1284.4,1283.4,1.7108]
[1610304524500,4.00959,1283.8,1283.5,14.00959]
[1610304524900,2.2069,1284.4,1283.6,10.0]
[1610304525103,18.13248445,1284.5,1283.6,11.5398]
[1610304525305,18.13248445,1284.5,1283.7,10.0]
[1610304525505,18.13248445,1284.5,1283.7,12.0294]
[1610304525705,63.17171356,1284.8,1283.8,10.0]
[1610304525905,44.9618,1284.8,1283.8,10.0]
[1610304526105,44.9618,1284.8,1283.9,10.0]
[1610304526504,44.9618,1284.8,1283.7,2.0294]
[1610304526505,4.00959,1284.7,1284.6,4.00959]
[1610304527109,4.00959,1284.7,1284.6,10.0]
[1610304528210,44.9618,1284.8,1284.6,10.0]
[1610304528411,18.24475671,1285.0,1284.7,10.0]
[1610304528610,18.25808905,1285.2,1284.7,10.0]
[1610304528809,18.25808905,1285.2,1284.5,2.4317]
[1610304529011,18.26775738,1285.4,1284.5,2.4317]
[1610304529211,18.26775738,1285.4,1284.6,10.0]
[1610304529412,18.27863654,1285.5,1284.6,10.0]
[1610304529610,18.27805206,1285.6,1284.6,10.0]
[1610304529810,18.27805206,1285.6,1284.7,10.0]
[1610304530010,18.27805206,1285.6,1284.5,2.4317]
[1610304530211,18.27805206,1285.6,1284.8,10.0]
[1610304530411,18.27334793,1285.7,1285.2,4.00959]
[1610304530811,18.27334793,1285.7,1285.2,5.57499]
[1610304531012,18.27031418,1285.8,1285.3,10.0]
[1610304531212,18.26495822,1285.7,1285.3,10.0]
[1610304531412,18.26495822,1285.7,1285.2,1.5654]
[1610304531613,18.25519607,1285.6,1284.8,2.5095]
[1610304531815,18.25519607,1285.6,1285.4,10.0]
[1610304532212,18.25519607,1285.6,1284.8,2.5095]
[1610304532412,6.2582,1285.7,1284.8,4.0511]
[1610304532413,4.00959,1285.1,1284.8,4.0511]
[1610304532813,4.00959,1285.1,1284.9,10.0]
[1610304533215,4.00959,1285.1,1285.0,10.0]
[1610304533414,18.26635161,1285.4,1284.9,10.0]
[1610304533615,18.28175114,1285.5,1284.9,10.0]
[1610304533814,18.28175114,1285.5,1285.1,10.0]
[1610304534015,18.28175114,1285.5,1284.8,2.5095]
[1610304534016,18.29383977,1285.6,1284.9,10.0]
[1610304534213,18.29383977,1285.6,1285.1,2.1765]
[1610304534414,4.00959,1285.2,1285.1,2.1765]
[1610304535213,4.00959,1285.2,1285.1,12.1765]
[1610304535414,18.27738002,1285.2,1285.1,12.1765]
[1610304535615,18.28268002,1285.4,1285.1,12.1765]
[1610304536016,18.29197834,1285.5,1285.1,12.1765]
[1610304536216,18.29197834,1285.5,1285.2,10.0]
[1610304536416,4.00959,1285.3,1285.2,10.0]
[1610304536817,4.00959,1285.3,1285.1,2.1765]
[1610304537020,4.00959,1285.3,1285.2,10.0]
[1610304539522,7.30324935,1285.3,1285.2,10.0]
[1610304541726,26.52055046,1285.3,1285.2,10.0]
[1610304541929,7.30324935,1285.3,1285.2,10.0]
[1610304543128,7.30324935,1285.3,1285.2,9.3922]
[1610304543328,7.30324935,1285.3,1285.2,7.4673]
[1610304543728,7.30324935,1285.3,1285.2,5.5286]
[1610304543927,7.30324935,1285.3,1283.9,63.9637]
[1610304544128,26.95026442,1285.3,1283.9,63.9637]
[1610304544327,26.95026442,1285.3,1284.0,10.0]
[1610304544528,4.00959,1284.1,1284.0,10.0]
[1610304544728,6.24999,1284.1,1283.9,63.9637]
[1610304545127,6.24999,1284.1,1284.0,10.0]
[1610304546328,9.54727884,1284.1,1284.0,10.0]
[1610304548130,6.24999,1284.1,1284.0,10.0]
[1610304549829,20.51165257,1284.1,1284.0,10.0]
[1610304550629,24.52124257,1284.1,1284.0,10.0]
[1610304550830,6.24999,1284.1,1284.0,10.0]
[1610304555139,25.40646748,1284.1,1284.0,10.0]
[1610304555338,28.70440292,1284.1,1284.0,10.0]
[1610304555939,9.54792544,1284.1,1284.0,6.4988]
[1610304556138,9.54792544,1284.1,1284.0,3.4774]
[1610304556339,9.54792544,1284.1,1284.0,1.533]
[1610304556639,63.1451,1284.0,1283.9,3.3751]
[1610304556839,63.1451,1284.0,1283.4,10.0]
[1610304557239,93.1451,1284.0,1283.4,10.0]
[1610304557439,19.15334111,1283.5,1283.3,10.0]
[1610304557642,20.95674111,1283.5,1283.3,9.6897]
[1610304557839,20.95674111,1283.5,1283.3,8.5544]
[1610304557840,1.8034,1283.5,1283.3,8.5544]
[1610304558040,19.14943768,1283.4,1282.5,10.0]
[1610304558240,22.44922496,1283.4,1283.1,10.0]
[1610304558440,3.29978728,1283.4,1283.1,10.0]
[1610304558640,4.00959,1283.2,1283.0,10.0]
[1610304559040,18.26628693,1283.1,1283.0,10.0]
[1610304559239,18.26628693,1283.1,1282.4,2.4865]
[1610304559640,3.29896529,1283.1,1283.0,10.0]
[1610304559842,3.29896529,1283.1,1282.6,10.0]
[1610304560041,3.29896529,1283.1,1282.8,2.0714]
[1610304560241,3.29896529,1283.1,1282.9,10.0]
[1610304560640,4.00959,1283.0,1282.8,2.0714]
[1610304560839,4.00959,1283.0,1282.9,10.0]
[1610304561241,18.28944046,1283.4,1282.9,10.0]
[1610304561641,18.28944046,1283.4,1283.0,10.0]
[1610304561842,18.28877589,1283.7,1283.0,10.0]
[1610304562044,18.28877589,1283.7,1282.9,10.0]
[1610304562243,18.28877589,1283.7,1282.8,2.0714]
[1610304562443,19.65717792,1285.0,1283.1,10.0]
[1610304562444,18.28830674,1283.9,1283.1,10.0]
[1610304562644,4.00959,1283.5,1283.4,4.00959]
[1610304563045,4.00959,1283.5,1283.4,14.00959]
[1610304563247,18.28488701,1284.0,1283.4,14.00959]
[1610304563447,1.9852,1284.5,1283.5,10.0]
[1610304563649,18.30036257,1284.1,1283.5,10.0]
[1610304563847,18.30036257,1284.1,1283.6,10.0]
[1610304564247,18.3166573,1284.3,1283.5,10.0]
[1610304564647,18.3166573,1284.3,1284.0,4.00959]
[1610304565149,3.3805778,1284.2,1284.0,4.00959]
[1610304565350,21.71247113,1284.2,1284.1,10.0]
[1610304566749,7.3901678,1284.2,1284.1,10.0]
[1610304567750,25.77834048,1284.2,1284.1,10.0]
[1610304567951,4.00959,1284.2,1284.1,10.0]
[1610304568151,5.87009,1284.2,1284.1,10.0]
[1610304568952,25.13260919,1284.2,1284.1,10.0]
[1610304569451,28.56539673,1284.2,1284.1,10.0]
[1610304569654,9.30287754,1284.2,1284.1,10.0]
[1610304570857,9.30287754,1284.2,1284.1,8.0452]
[1610304571059,9.30287754,1284.2,1284.1,6.4992]
[1610304571258,9.30287754,1284.2,1284.1,0.1702]
[1610304571458,9.30287754,1284.2,1283.8,10.0]
[1610304571859,9.30287754,1284.2,1283.6,10.0]
[1610304572059,9.30287754,1284.2,1283.7,10.0]
[1610304572260,19.21058849,1283.8,1283.7,10.0]
[1610304572460,1.5113,1283.8,1282.5,1.9992]
[1610304572660,4.00959,1282.6,1282.5,1.9992]
[1610304573262,4.00959,1282.6,1282.5,11.9992]
[1610304574464,18.29098755,1283.2,1282.5,11.9992]
[1610304574665,4.00959,1282.9,1282.5,11.9992]
[1610304574865,4.00959,1282.9,1282.6,10.0]
[1610304575265,4.00959,1282.9,1282.7,10.0]
[1610304575667,4.00959,1282.9,1282.6,10.0]
[1610304576066,4.00959,1282.9,1282.8,10.0]
[1610304576465,4.00959,1282.9,1282.6,10.0]
[1610304576665,18.2980492,1283.1,1282.7,10.0]
[1610304577066,18.2980492,1283.1,1282.6,10.0]
[1610304577467,18.2980492,1283.1,1282.6,1.5998]
[1610304577666,18.2980492,1283.1,1282.7,10.0]
[1610304578067,18.2980492,1283.1,1282.8,10.0]
[1610304578267,18.31261466,1283.0,1282.8,10.0]
[1610304578466,18.31261466,1283.0,1282.7,10.0]
[1610304578667,18.31261466,1283.0,1282.9,10.0]
[1610304579066,18.31261466,1283.0,1282.7,10.0]
[1610304579266,3.38611092,1282.9,1282.8,10.0]
[1610304579866,3.38611092,1282.9,1282.7,10.0]
[1610304580467,3.38611092,1282.9,1282.8,10.0]
[1610304580668,25.67478355,1282.9,1282.8,10.0]
[1610304580869,7.39570092,1282.9,1282.7,10.0]
[1610304581270,7.39570092,1282.9,1282.3,2.1668]
[1610304581271,7.39570092,1282.9,1282.4,10.0]
[1610304581668,7.39570092,1282.9,1282.5,10.0]
[1610304581869,18.26188953,1282.6,1282.5,10.0]
[1610304582069,9.25160092,1282.9,1282.4,10.0]
[1610304582269,3.38757994,1282.8,1282.4,10.0]
[1610304582469,3.38757994,1282.8,1282.5,10.0]
[1610304582870,4.00959,1282.6,1282.0,10.0]
[1610304583271,18.24744943,1282.5,1282.1,10.0]
[1610304583575,21.63490727,1282.5,1282.0,10.0]
[1610304583874,21.63490727,1282.5,1282.1,10.0]
[1610304584276,3.38745784,1282.5,1282.0,10.0]
[1610304584674,3.38745784,1282.5,1281.9,1.9479]
[1610304584675,3.38745784,1282.5,1282.1,10.0]
[1610304585075,3.38745784,1282.5,1282.0,10.0]
[1610304585274,3.38745784,1282.5,1282.1,10.0]
[1610304585574,21.59475245,1282.5,1282.1,10.0]
[1610304585774,21.59475245,1282.5,1282.2,10.0]
[1610304585974,21.59475245,1282.5,1281.9,1.9479]
[1610304586175,21.59475245,1282.5,1282.3,10.0]
[1610304586374,3.38734637,1282.4,1282.3,10.0]
[1610304586576,3.38734637,1282.4,1282.0,10.0]
[1610304586776,4.00959,1282.1,1281.9,1.9479]
[1610304587375,4.00959,1282.1,1282.0,10.0]
[1610304587775,4.00959,1282.1,1281.6,1.8174]
[1610304587976,22.1577063,1282.1,1281.6,1.8174]
[1610304588176,22.1577063,1282.1,1281.7,10.0]
[1610304588577,22.1577063,1282.1,1281.6,1.8174]
[1610304588779,4.00959,1281.7,1281.6,1.8174]
[1610304589176,4.00959,1281.7,1281.6,11.8174]
[1610304591281,22.17868007,1281.7,1281.6,11.8174]
[1610304591579,67.26298007,1281.7,1281.6,11.8174]
[1610304591980,49.09389,1281.7,1281.6,11.8174]
[1610304594884,52.48386577,1281.7,1281.6,9.4778]
[1610304595484,71.58099172,1281.7,1281.6,9.4778]
[1610304596687,52.48386577,1281.7,1281.6,9.4778]
[1610304597386,71.5980749,1281.7,1281.6,9.4778]
[1610304597990,52.48386577,1281.7,1281.6,9.4778]
[1610304598992,71.61114777,1281.7,1281.6,9.4778]
[1610304600091,52.48386577,1281.7,1281.6,7.1425]
[1610304600293,71.60308663,1281.7,1281.6,7.1425]
[1610304600692,52.48386577,1281.7,1281.6,4.0365]
[1610304601092,52.48386577,1281.7,1281.6,1.1372]
[1610304601293,54.48616577,1281.7,1280.9,0.63]
[1610304601494,54.48616577,1281.7,1281.1,8.2328]
[1610304601693,19.10650221,1281.4,1281.1,7.9766]
[1610304601893,19.10650221,1281.4,1281.0,10.0]
[1610304602100,19.08745343,1281.3,1281.0,10.0]
[1610304602298,19.08244766,1281.2,1281.0,10.0]
[1610304602500,19.08244766,1281.2,1280.6,2.0023]
[1610304602702,3.39155884,1281.3,1280.7,10.0]
[1610304602901,18.16891925,1280.9,1280.7,10.0]
[1610304603101,4.00959,1280.8,1280.7,10.0]
[1610304603300,4.00959,1280.8,1280.6,2.0023]
[1610304603902,4.00959,1280.8,1280.7,10.0]
[1610304604103,26.57779471,1281.1,1280.7,10.0]
[1610304604502,26.57779471,1281.1,1280.8,10.0]
[1610304604704,8.3968,1281.1,1280.8,10.0]
[1610304604902,8.3968,1281.1,1280.7,10.0]
[1610304605103,8.3968,1281.1,1280.9,4.00959]
[1610304605308,8.3968,1281.1,1280.9,15.61039]
[1610304605704,18.22718165,1281.8,1280.9,15.61039]
[1610304605705,18.24416483,1281.9,1281.0,10.0]
[1610304605903,16.31566483,1281.9,1281.0,10.0]
[1610304606105,2.4,1282.6,1281.1,10.0]
[1610304606304,19.16763181,1282.8,1281.1,10.0]
[1610304606505,19.18090532,1283.0,1280.9,7.16519]
[1610304606705,19.18962731,1283.1,1281.2,10.0]
[1610304606905,3.38826242,1282.5,1281.2,11.7168]
[1610304607106,4.00959,1282.1,1281.7,4.00959]
[1610304607305,3.38826242,1282.5,1281.7,4.00959]
[1610304607504,3.38826242,1282.5,1281.8,10.0]
[1610304607708,3.38826242,1282.5,1281.8,2.4085]
[1610304608205,3.38806425,1282.9,1281.9,10.0]
[1610304608405,3.38806425,1282.9,1282.0,10.0]
[1610304609005,3.38806425,1282.9,1281.9,10.0]
[1610304609006,4.96486425,1282.9,1281.9,10.0]
[1610304609207,4.00959,1282.3,1282.2,4.00959]
[1610304609405,4.00959,1282.3,1282.0,10.0]
[1610304609807,4.00959,1282.3,1281.9,10.0]
[1610304610008,4.00959,1282.3,1282.0,10.0]
[1610304610309,4.00959,1282.3,1282.1,10.0]
[1610304610710,4.00959,1282.3,1282.1,2.2403]
[1610304611108,4.00959,1282.3,1282.2,10.0]
[1610304612310,7.39983079,1282.3,1282.2,10.0]
[1610304612911,26.57227116,1282.3,1282.2,10.0]
[1610304613312,8.96373079,1282.3,1282.2,10.0]
[1610304616114,8.96373079,1282.3,1282.2,5.301]
[1610304616317,8.96373079,1282.3,1281.1,58.3973]
[1610304616516,10.70373079,1282.3,1281.1,58.3973]
[1610304616918,19.10832957,1281.7,1281.3,10.0]
[1610304617117,4.00959,1281.4,1281.2,10.0]
[1610304617318,5.82399,1281.4,1281.1,58.3973]
[1610304617719,5.82399,1281.4,1281.2,10.0]
[1610304618318,7.40429,1281.4,1281.3,10.0]
[1610304618518,7.40429,1281.4,1281.2,10.0]
[1610304619020,5.82399,1281.4,1281.3,10.0]
[1610304619221,9.21548855,1281.4,1281.3,10.0]
[1610304619422,9.21548855,1281.4,1281.2,10.0]
[1610304619621,9.21548855,1281.4,1281.1,58.3973]
[1610304619822,9.21548855,1281.4,1281.3,10.0]
[1610304634941,7.40108855,1281.4,1281.3,10.0]
[1610304637341,3.39149855,1281.4,1281.3,14.00959]
[1610304637541,3.39149855,1281.4,1281.3,15.59339]
[1610304637739,18.23990184,1281.8,1281.3,45.59339]
[1610304637940,18.24951035,1282.0,1281.3,45.59339]
[1610304638140,18.25445236,1282.1,1281.4,10.0]
[1610304638340,18.25445236,1282.1,1281.4,40.0]
[1610304638542,21.2299941,1283.4,1281.4,40.0]
[1610304638543,18.2693993,1282.3,1281.4,40.0]
[1610304638740,18.1623993,1282.3,1281.5,10.0]
[1610304638941,19.18264095,1283.0,1281.6,40.0]
[1610304639141,19.18797875,1283.1,1281.6,40.0]
[1610304639342,4.00959,1282.8,1282.3,4.00959]
[1610304639542,3.42651335,1282.9,1282.3,34.00959]
[1610304639942,3.42651335,1282.9,1282.4,10.0]
[1610304640547,3.42651335,1282.9,1282.5,10.0]
[1610304640944,22.62765574,1283.2,1282.4,10.0]
[1610304641343,4.00959,1283.1,1282.5,10.0]
[1610304641746,22.62765574,1283.2,1282.4,10.0]
[1610304641944,3.42641424,1283.2,1282.4,40.0]
[1610304642144,3.42641424,1283.2,1282.5,10.0]
[1610304642345,3.42621241,1283.1,1282.5,10.0]
[1610304642545,3.42621241,1283.1,1282.6,10.0]
[1610304642945,3.42621241,1283.1,1282.4,10.0]
[1610304643348,3.42621241,1283.1,1282.7,4.00959]
[1610304643546,7.43585713,1283.3,1282.7,4.00959]
[1610304643745,7.43585713,1283.3,1282.8,10.0]
[1610304644146,7.43585713,1283.3,1282.9,10.0]
[1610304644545,7.43585713,1283.3,1282.7,5.90769]
[1610304644546,7.43585713,1283.3,1282.8,10.0]
[1610304644746,7.43585713,1283.3,1282.7,5.90769]
[1610304644946,7.43585713,1283.3,1282.9,10.0]
[1610304645148,7.43585713,1283.3,1282.8,10.0]
[1610304645350,3.42603886,1283.2,1282.8,10.0]
[1610304645547,3.42603886,1283.2,1283.0,10.0]
[1610304645949,3.42603886,1283.2,1282.9,10.0]
[1610304646349,3.42603886,1283.2,1283.1,10.0]
[1610304646549,3.42603886,1283.2,1283.0,10.0]
[1610304646750,3.42603886,1283.2,1282.3,2.4586]
[1610304646751,22.62159374,1283.2,1282.3,2.4586]
[1610304646951,22.62159374,1283.2,1283.1,10.0]
[1610304647151,24.67539374,1283.2,1283.1,10.0]
[1610304647350,24.67539374,1283.2,1282.4,10.0]
[1610304647553,26.25369374,1283.2,1283.1,10.0]
[1610304648754,24.67539374,1283.2,1283.1,10.0]
[1610304649752,26.23849374,1283.2,1283.1,10.0]
[1610304650558,7.04293886,1283.2,1283.1,10.0]
[1610304650755,4.98913886,1283.2,1283.1,10.0]
[1610304651558,24.17924139,1283.2,1283.1,10.0]
[1610304652360,25.79514139,1283.2,1283.1,10.0]
[1610304652959,6.60503886,1283.2,1283.1,10.0]
[1610304656162,5.04193886,1283.2,1283.1,10.0]
[1610304656563,24.21088884,1283.2,1283.1,10.0]
[1610304658965,5.04193886,1283.2,1283.1,10.0]
[1610304659366,6.58993886,1283.2,1283.1,10.0]
[1610304659767,6.58993886,1283.2,1283.1,7.03]
[1610304659968,6.58993886,1283.2,1283.1,6.6982]
[1610304660166,6.58993886,1283.2,1283.1,5.8497]
[1610304660368,26.09405377,1283.2,1283.1,3.5996]
[1610304660566,26.09405377,1283.2,1283.1,3.34]
[1610304660769,26.09405377,1283.2,1283.1,3.0086]
[1610304660966,6.58993886,1283.2,1283.1,0.7038]
[1610304661167,57.651,1283.1,1281.1,1.7672]
[1610304661372,4.00959,1281.2,1281.1,1.7672]
[1610304661768,4.00959,1281.2,1280.3,4.00959]
[1610304662968,4.00959,1281.2,1280.2,1.5847]
[1610304663170,4.00959,1281.2,1279.7,1.5843]
[1610304663370,4.00959,1280.2,1279.9,4.00959]
[1610304664168,4.00959,1280.2,1279.3,1.5762]
[1610304664367,4.00959,1280.2,1280.0,10.0]
[1610304664568,4.00959,1280.2,1279.9,1.8812]
[1610304665368,18.01141888,1280.7,1280.0,10.0]
[1610304665769,18.01141888,1280.7,1280.1,10.0]
[1610304666171,18.01141888,1280.7,1280.0,10.0]
[1610304666370,3.43010839,1280.6,1280.2,10.0]
[1610304666874,21.42249842,1280.6,1280.0,10.0]
[1610304667274,17.98484349,1280.4,1279.3,51.8326]
[1610304667473,17.98484349,1280.4,1280.1,10.0]
[1610304667674,18.02536924,1280.5,1280.0,10.0]
[1610304667873,21.45596398,1280.5,1279.6,1.9172]
[1610304668273,21.45596398,1280.5,1279.7,10.0]
[1610304668476,3.43059474,1280.5,1279.8,30.0]
[1610304668677,3.43059474,1280.5,1279.9,10.0]
[1610304668873,3.43059474,1280.5,1280.0,30.0]
[1610304669074,49.72109474,1280.5,1280.0,30.0]
[1610304669274,49.72109474,1280.5,1280.0,40.0]
[1610304669472,49.72109474,1280.5,1280.4,4.00959]
[1610304669672,49.72109474,1280.5,1280.4,37.46429]
[1610304670073,49.64529474,1280.5,1280.4,47.46429]
[1610304670274,48.65639474,1280.5,1280.4,47.46429]
[1610304670474,48.65639474,1280.5,1280.4,45.89559]
[1610304670674,46.2905,1280.5,1280.4,15.89559]
[1610304670874,4.00959,1280.9,1280.4,11.886]
[1610304671274,4.00959,1280.9,1280.5,10.0]
[1610304671474,4.00959,1280.7,1280.5,14.00959]
[1610304671674,4.00959,1280.7,1280.6,10.0]
[1610304671874,4.00959,1280.7,1280.5,4.00959]
[1610304672375,4.00959,1280.7,1280.6,10.0]
[1610304672773,4.00959,1280.7,1280.5,10.0]
[1610304672974,4.00959,1280.7,1280.4,1.886]
[1610304672975,4.00959,1280.7,1280.6,10.0]
[1610304673374,4.00959,1280.7,1280.5,10.0]
[1610304673574,4.00959,1280.7,1280.6,10.0]
[1610304675479,18.09060887,1281.1,1280.6,10.0]
[1610304675878,18.13948181,1281.2,1280.7,10.0]
[1610304676086,18.13948181,1281.2,1280.8,30.0]
[1610304676289,18.16301204,1281.4,1280.8,31.6777]
[1610304676679,18.19152905,1281.6,1280.8,31.6777]
[1610304676880,18.19152905,1281.6,1280.9,10.0]
[1610304677079,18.19152905,1281.6,1281.0,30.0]
[1610304677280,1.5482,1283.6,1281.0,30.0]
[1610304677281,18.21089346,1281.9,1281.1,10.0]
[1610304677481,18.21089346,1281.9,1281.8,4.00959]
[1610304677683,18.22354747,1282.0,1281.8,4.00959]
[1610304677882,22.24894555,1282.1,1281.8,6.00409]
[1610304678082,22.24894555,1282.1,1281.8,16.00409]
[1610304678282,18.23935555,1282.1,1281.9,10.0]
[1610304678482,18.24228837,1282.2,1281.9,10.0]
[1610304678682,18.24228837,1282.2,1282.0,10.0]
[1610304678885,11.1518,1283.9,1282.0,10.0]
[1610304678886,18.24380064,1282.3,1282.0,10.0]